bitfinex/quotes_ETHUSD_20250801
["timestamp","ask_amount","ask_price","bid_price","bid_amount"]
[1754038569186,6.6254,3617.6,3617.5,14.02534001]
[1754038570077,4.3384,3617.6,3617.5,14.02534001]
[1754038570277,4.2,3617.6,3617.5,15.70431649]
[1754038570782,4.2,3617.7,3617.6,32.7642636]
[1754038571611,4.2,3617.7,3617.6,35.7642636]
[1754038572626,4.2,3618.6,3618.5,2.76357606]
[1754038572932,4.2,3618.8,3618.7,5.76342332]
[1754038573225,6.0368,3618.8,3618.7,10.11242332]
[1754038573529,6.487,3618.8,3618.7,5.76342332]
[1754038573727,7.69954,3618.8,3618.7,3.0]
[1754038573927,7.69954,3618.8,3618.7,13.0]
[1754038574093,0.55,3618.7,3618.0,7.714]
[1754038574293,0.55,3618.7,3618.3,2.76372]
[1754038574494,0.55,3618.5,3618.3,2.76372]
[1754038574696,0.55,3618.3,3618.0,16.039]
[1754038574990,2.4254,3618.4,3618.1,3.0]
[1754038574991,2.837,3618.2,3618.1,3.0]
[1754038575421,2.9754,3618.2,3618.1,3.0]
[1754038576526,2.9754,3618.2,3618.1,5.76388159]
[1754038577089,2.9754,3618.2,3618.1,3.0]
[1754038577297,0.55,3618.1,3617.9,0.21091771]
[1754038577530,0.6884,3618.0,3617.9,4.348]
[1754038577731,0.55,3617.9,3617.8,4.348]
[1754038577931,0.55,3617.9,3617.5,2.76429218]
[1754038578229,0.1384,3617.4,3617.3,32.76448617]
[1754038578390,0.55,3618.0,3617.3,7.32096165]
[1754038578594,0.6884,3617.4,3617.3,0.20948572]
[1754038578792,0.6884,3617.4,3615.7,9.40665963]
[1754038578793,0.55,3617.3,3616.9,4.347]
[1754038579030,2.4088,3617.2,3616.9,7.11177276]
[1754038579327,0.1384,3617.0,3616.9,40.11177276]
[1754038579526,2.5472,3617.0,3616.9,10.11177276]
[1754038579726,2.5472,3617.0,3616.8,2.76485408]
[1754038579931,0.55,3617.4,3617.0,2.76471608]
[1754038580130,0.55,3617.4,3617.1,5.76462922]
[1754038580424,2.4088,3617.3,3617.1,2.76462922]
[1754038580625,1.9653,3617.3,3617.0,2.76469842]
[1754038580831,0.4435,3617.2,3617.0,2.76469842]
[1754038581031,0.1384,3617.1,3616.9,3.0]
[1754038581231,2.4088,3617.0,3616.7,16.531]
[1754038581444,2.76454084,3617.3,3616.9,3.0]
[1754038581652,7.71943352,3617.3,3616.8,3.0]
[1754038581797,4.95489268,3617.3,3616.8,5.76482891]
[1754038582133,0.1384,3616.9,3616.8,13.0]
[1754038582304,0.1384,3616.9,3616.8,5.76487502]
[1754038582512,2.5472,3616.9,3616.8,5.76487502]
[1754038583439,0.1384,3616.9,3616.8,5.76487502]
[1754038583650,4.347,3617.9,3617.5,2.76434001]
[1754038583798,1.9653,3617.9,3617.8,2.76411078]
[1754038584129,1.9653,3618.3,3617.7,10.0]
[1754038584330,1.9653,3618.3,3618.1,2.76383412]
[1754038584533,1.9653,3618.3,3618.2,2.7638052]
[1754038584924,2.1037,3618.3,3618.2,2.7638052]
[1754038585138,0.1384,3618.3,3618.2,2.7638052]
[1754038587211,0.1384,3618.3,3618.2,7.1108052]
[1754038587438,1.9653,3618.6,3618.5,2.76357606]
[1754038587612,0.1384,3618.6,3618.5,2.76357606]
[1754038587814,2.1037,3618.6,3618.5,2.76357606]
[1754038588538,2.5472,3618.6,3618.5,2.76357606]
[1754038588943,4.3384,3618.6,3618.5,15.76357606]
[1754038589144,4.2,3618.6,3618.5,37.00852209]
[1754038591839,4.2,3618.6,3618.5,33.32952209]
[1754038592046,6.6088,3618.6,3618.5,10.31516508]
[1754038592701,6.6088,3618.6,3618.5,5.97016508]
[1754038592923,6.7472,3618.6,3618.5,10.31516508]
[1754038594309,6.7472,3618.6,3618.5,3.20658902]
[1754038594512,7.2972,3618.6,3618.5,3.20658902]
[1754038594707,8.73776387,3618.6,3618.5,0.20658902]
[1754038594912,8.73776387,3618.6,3618.4,3.0]
[1754038595148,2.4088,3618.5,3618.4,3.0]
[1754038595328,2.5472,3618.5,3618.4,3.0]
[1754038598955,2.1037,3618.5,3617.9,3.0]
[1754038599155,2.4088,3618.4,3618.1,3.0]
[1754038599355,7.51353003,3618.6,3618.2,14.344]
[1754038599659,2.5472,3618.3,3618.2,7.344]
[1754038600058,2.5472,3618.3,3618.2,7.2905769]
[1754038600244,6.7472,3618.3,3618.2,10.0543821]
[1754038600639,6.7472,3618.3,3618.2,7.2905769]
[1754038600838,6.7472,3618.3,3618.2,10.0543821]
[1754038601041,6.7472,3618.3,3618.2,7.2905769]
[1754038601235,2.5472,3618.3,3618.2,7.2905769]
[1754038601455,2.5472,3618.3,3618.2,10.0543821]
[1754038602663,0.1384,3618.3,3618.2,10.0543821]
[1754038602867,0.55,3618.9,3618.4,12.76362903]
[1754038603030,4.893,3618.9,3618.6,2.76344055]
[1754038603366,1.9653,3618.8,3618.7,2.76336754]
[1754038603922,2.1037,3618.8,3618.7,2.76336754]
[1754038605360,0.1384,3618.8,3618.7,2.76336754]
[1754038605574,0.1384,3618.8,3618.7,5.76336754]
[1754038606136,0.1384,3618.8,3618.7,10.10536754]
[1754038606769,0.1384,3618.8,3618.7,36.65032779]
[1754038606950,6.1722,3619.3,3619.2,2.76304155]
[1754038607139,4.2,3619.3,3619.2,2.76304155]
[1754038607324,4.3384,3619.3,3619.2,5.76304155]
[1754038607525,0.1384,3619.3,3619.2,5.76304155]
[1754038607843,0.1384,3619.3,3619.2,35.76304155]
[1754038608038,0.1384,3619.3,3619.2,36.45794718]
[1754038608268,0.1384,3619.3,3619.2,35.76304155]
[1754038609462,4.2,3619.8,3619.7,2.76265988]
[1754038609664,4.2,3620.2,3620.1,2.76235463]
[1754038609872,6.1722,3620.3,3620.2,2.76227832]
[1754038610035,6.3106,3620.3,3620.2,2.76227832]
[1754038610566,6.7593,3620.3,3619.7,2.76265988]
[1754038610729,5.50343,3620.3,3619.9,13.294]
[1754038610934,2.4209,3620.2,3619.9,7.1035043]
[1754038611133,0.1384,3620.0,3619.9,37.1035043]
[1754038611369,4.2,3620.3,3619.9,4.341]
[1754038611572,0.5871,3620.0,3619.9,7.10350725]
[1754038611731,0.5871,3620.0,3619.9,13.51250725]
[1754038611935,2.5593,3620.0,3619.9,13.51250725]
[1754038612973,4.2,3620.3,3620.2,5.76227832]
[1754038613176,4.2,3620.3,3620.2,10.10227832]
[1754038613177,6.6209,3620.3,3620.2,10.10227832]
[1754038614459,6.7593,3620.3,3620.2,10.10227832]
[1754038614766,4.3384,3620.3,3620.2,10.10227832]
[1754038615439,6.7593,3620.3,3620.2,7.34]
[1754038615636,7.14394975,3620.3,3618.8,10.0]
[1754038615873,0.1384,3619.9,3619.8,2.76258356]
[1754038616066,2.5593,3619.9,3619.8,10.10158356]
[1754038616953,2.5593,3619.9,3619.8,7.339]
[1754038617458,2.5593,3619.9,3619.6,3.0]
[1754038617658,2.67683,3619.8,3619.4,2.76281695]
[1754038617862,6.6209,3619.7,3619.3,2.76290414]
[1754038618068,4.2,3619.7,3619.4,7.339]
[1754038618244,2.4209,3619.6,3619.4,7.339]
[1754038618438,0.5871,3619.5,3619.4,7.339]
[1754038618770,2.5593,3619.5,3619.4,3.0]
[1754038620862,6.7593,3619.5,3619.4,3.0]
[1754038621267,6.7593,3619.5,3619.4,5.76288887]
[1754038621764,4.3384,3619.5,3619.4,5.76288887]
[1754038621969,2.4209,3620.9,3620.8,2.76182059]
[1754038622164,6.7593,3620.9,3620.7,2.76183287]
[1754038622369,4.6487,3620.9,3620.8,2.76182059]
[1754038622574,6.1722,3620.9,3620.8,0.20776565]
[1754038622876,6.6209,3620.9,3620.6,2.76194636]
[1754038623089,6.6209,3620.9,3620.5,2.76204628]
[1754038623090,2.4209,3620.8,3620.5,2.76204628]
[1754038623296,0.5871,3620.7,3620.5,3.0]
[1754038623473,0.5871,3620.7,3620.4,4.338]
[1754038623793,0.1384,3620.5,3620.4,4.338]
[1754038623985,2.5593,3620.5,3620.4,4.338]
[1754038624302,2.5593,3620.5,3620.3,7.0991917]
[1754038624482,2.4209,3620.4,3620.3,10.09920202]
[1754038625177,2.4209,3620.4,3620.3,10.30593029]
[1754038625381,2.4209,3620.4,3620.3,7.54372827]
[1754038625577,2.4209,3620.4,3620.3,10.30593029]
[1754038626089,4.2,3620.9,3620.8,2.76182059]
[1754038626392,6.6209,3620.9,3620.6,7.337]
[1754038626587,2.9709,3620.8,3620.4,4.337]
[1754038626755,0.55,3620.8,3620.4,10.0991072]
[1754038626957,0.1384,3620.5,3620.4,2.76212573]
[1754038627384,2.1106,3620.5,3620.3,7.337]
[1754038627588,2.1106,3620.5,3620.4,2.76212573]
[1754038628627,0.1384,3620.5,3620.4,2.76212573]
[1754038629214,4.2,3620.7,3620.6,2.76197315]
[1754038629620,4.3384,3620.7,3620.6,5.76197315]
[1754038631746,6.3106,3620.7,3620.6,5.76197315]
[1754038633054,6.7593,3620.7,3620.6,10.09797315]
[1754038633556,6.3106,3620.7,3620.6,10.09797315]
[1754038635160,4.3384,3620.7,3620.6,10.09797315]
[1754038635616,4.2,3620.7,3620.6,2.76197315]
[1754038635820,4.2,3620.7,3620.6,7.09697315]
[1754038636136,6.6209,3620.7,3620.5,3.0]
[1754038636521,0.1384,3620.6,3620.5,5.76204944]
[1754038636717,1.987,3620.6,3620.5,5.76204944]
[1754038637124,2.4522,3620.6,3620.5,5.76204944]
[1754038637419,0.1384,3620.6,3620.5,5.76204944]
[1754038637834,1.987,3620.6,3620.5,5.76204944]
[1754038638035,1.987,3620.6,3620.5,10.09604944]
[1754038638265,0.1384,3620.6,3620.5,10.09604944]
[1754038638559,4.2,3620.7,3620.6,2.76197315]
[1754038638923,6.5138,3620.7,3620.6,3.0]
[1754038639123,0.55,3620.6,3618.7,10.0]
[1754038639331,0.55,3620.6,3618.3,6.639]
[1754038639332,0.55,3620.2,3619.4,2.76281983]
[1754038639561,0.1384,3619.7,3619.6,2.76271483]
[1754038639732,0.1384,3619.7,3619.6,3.0]
[1754038639733,6.6522,3619.7,3619.6,3.0]
[1754038640140,6.6522,3619.7,3619.6,5.76273621]
[1754038640459,6.187,3619.7,3619.6,5.76273621]
[1754038640675,0.1384,3620.0,3619.9,5.76250725]
[1754038640833,0.1384,3620.0,3619.9,40.09650725]
[1754038641347,4.2,3620.5,3620.3,3.0]
[1754038641550,1.8486,3620.4,3619.5,3.1384]
[1754038641861,0.1384,3620.3,3620.2,3.0]
[1754038642025,1.8486,3620.3,3620.2,5.76227832]
[1754038642225,1.987,3620.3,3620.1,5.76233443]
[1754038642428,2.4522,3620.2,3619.9,3.0]
[1754038642659,6.5138,3620.1,3619.7,3.0]
[1754038642864,4.2,3620.1,3619.6,7.334]
[1754038643035,2.3138,3620.0,3619.6,4.334]
[1754038643238,0.1384,3619.7,3619.6,4.334]
[1754038643432,2.4522,3619.7,3619.6,3.0]
[1754038643637,2.4522,3619.7,3618.8,2.76331034]
[1754038643951,4.2,3620.1,3619.6,3.0]
[1754038644261,4.2,3620.1,3620.0,5.76243093]
[1754038644563,4.2,3620.1,3620.0,3.0]
[1754038644733,4.3384,3620.1,3620.0,5.76243093]
[1754038644929,4.3384,3620.1,3620.0,35.76243093]
[1754038645866,4.3384,3620.1,3620.0,5.76243093]
[1754038646066,4.3384,3620.1,3620.0,35.76243093]
[1754038646527,0.1384,3620.1,3620.0,38.48726369]
[1754038646730,8.534,3620.7,3620.6,3.0]
[1754038646944,8.534,3620.7,3620.6,2.76197315]
[1754038647149,4.2,3620.7,3620.6,2.76197315]
[1754038647592,4.3384,3620.7,3620.6,2.76197315]
[1754038647885,6.6522,3620.7,3620.5,2.76201654]
[1754038648085,4.8036,3620.7,3620.5,2.76201654]
[1754038648295,1.8486,3620.6,3620.5,2.76201654]
[1754038648450,2.3138,3620.6,3620.4,5.76211931]
[1754038648769,0.1384,3620.5,3620.4,5.76209387]
[1754038649476,1.987,3620.5,3620.4,2.76212573]
[1754038650889,2.4522,3620.5,3618.9,3.13136752]
[1754038651073,6.6468,3620.4,3619.4,30.0]
[1754038651276,2.3138,3620.3,3619.8,2.76253316]
[1754038651479,0.1384,3619.9,3619.8,2.76253316]
[1754038651685,4.4704,3619.9,3619.8,5.76253316]
[1754038652086,6.319,3619.9,3619.8,5.76253316]
[1754038652274,4.4704,3619.9,3619.8,5.76253316]
[1754038652800,6.7842,3619.9,3619.8,5.76253316]
[1754038653358,6.319,3619.9,3619.8,5.76253316]
[1754038654362,6.7842,3619.9,3619.8,3.0]
[1754038654559,10.9842,3619.9,3619.8,3.0]
[1754038654883,12.08262,3619.9,3619.8,3.0]
[1754038655692,12.08262,3619.9,3619.2,14.27]
[1754038655897,8.532,3619.9,3619.8,2.76258356]
[1754038656191,10.9842,3619.9,3619.7,5.76263035]
[1754038656393,2.4522,3619.8,3619.7,5.76263035]
[1754038656889,2.4522,3619.8,3619.7,3.0]
[1754038657582,2.4522,3619.8,3619.7,2.76265988]
[1754038657888,2.4522,3619.8,3619.5,3.0]
[1754038658097,6.6458,3619.7,3619.5,3.0]
[1754038658291,2.4522,3619.6,3619.1,3.0]
[1754038658504,0.1384,3619.2,3619.1,25.1341179]
[1754038658799,6.7842,3619.2,3619.1,5.7631179]
[1754038658967,6.7842,3619.2,3619.1,3.0]
[1754038659358,6.7842,3619.2,3619.1,5.7631179]
[1754038659806,6.7842,3619.2,3619.1,3.0]
[1754038660192,4.4704,3619.2,3619.1,36.61576877]
[1754038660774,4.4704,3619.2,3619.1,15.46676877]
[1754038660968,4.4704,3619.2,3619.1,8.9071179]
[1754038661196,4.4704,3619.2,3619.1,8.0661179]
[1754038663904,4.9356,3619.2,3619.1,8.0661179]
[1754038664105,6.7842,3619.2,3619.1,8.0661179]
[1754038664471,6.319,3619.2,3619.1,8.0661179]
[1754038665607,4.4704,3619.2,3619.1,8.0661179]
[1754038666375,4.4704,3619.2,3619.1,5.7631179]
[1754038666707,6.8453,3619.2,3619.1,5.7631179]
[1754038666872,6.8453,3619.2,3619.1,3.0]
[1754038667273,6.8453,3619.2,3619.1,5.7631179]
[1754038667574,6.8443,3619.2,3619.1,5.7631179]
[1754038668287,11.0443,3619.2,3619.1,5.7631179]
[1754038670176,10.6085,3619.2,3619.1,5.7631179]
[1754038670511,11.0443,3619.2,3619.1,3.0]
[1754038670822,0.55,3619.1,3617.3,10.0]
[1754038670975,12.14873,3619.2,3618.0,2.7638886]
[1754038670976,0.55,3618.7,3618.0,2.7638886]
[1754038671327,6.7049,3618.6,3618.1,5.76387445]
[1754038671525,7.09352113,3618.6,3618.0,5.76393664]
[1754038671824,2.76370272,3618.4,3617.4,10.0]
[1754038672030,6.7049,3618.3,3618.0,3.0]
[1754038672171,6.7049,3618.2,3617.7,10.0]
[1754038672371,2.3749,3618.1,3618.0,2.76390731]
[1754038672607,2.0775,3618.1,3618.0,5.76390731]
[1754038673112,0.1384,3618.1,3618.0,5.76390731]
[1754038673410,4.4684,3618.1,3618.0,5.76388869]
[1754038675985,6.4075,3618.1,3618.0,5.76388869]
[1754038677076,10.6075,3618.1,3618.0,5.76388869]
[1754038677608,11.0433,3618.1,3618.0,5.76388869]
[1754038678483,10.6075,3618.1,3618.0,5.76388869]
[1754038679109,11.0433,3618.1,3618.0,5.76388869]
[1754038679678,8.6684,3618.1,3618.0,5.76388869]
[1754038680011,11.0433,3618.1,3618.0,5.76388869]
[1754038681185,10.6075,3618.1,3618.0,5.76388869]
[1754038681382,4.3384,3618.1,3618.0,6.61668207]
[1754038681707,8.6684,3618.1,3618.0,36.61668207]
[1754038682304,9.8231223,3619.1,3618.0,36.61668207]
[1754038682305,6.638,3620.2,3618.2,10.0]
[1754038682507,4.6358,3619.3,3618.2,10.0]
[1754038682680,6.7039,3619.2,3618.8,2.76333926]
[1754038682878,0.1384,3618.4,3618.3,32.76369666]
[1754038683081,2.3749,3619.2,3619.1,2.7631179]
[1754038683315,6.2681,3619.2,3619.1,2.7631179]
[1754038684228,6.4065,3619.2,3618.6,3.0]
[1754038684528,0.1384,3619.0,3618.2,3.0]
[1754038684728,0.1384,3619.0,3618.1,2.76388159]
[1754038684729,4.329,3618.9,3618.7,3.0]
[1754038684885,4.329,3618.9,3618.0,0.85279338]
[1754038684886,6.7039,3618.8,3617.7,2.76418719]
[1754038685087,2.5133,3618.7,3618.5,3.0]
[1754038685407,2.5133,3618.7,3618.5,2.76357606]
[1754038685408,4.328,3618.6,3618.5,2.76357606]
[1754038685584,6.8413,3618.6,3618.5,2.76357606]
[1754038686185,6.4055,3618.6,3618.5,2.76357606]
[1754038686924,6.8413,3618.6,3618.4,2.76362341]
[1754038687085,4.328,3618.6,3618.5,2.76357606]
[1754038687291,4.328,3618.6,3618.5,5.76357606]
[1754038687627,4.328,3618.6,3618.5,3.0]
[1754038687628,4.4664,3618.6,3618.5,3.0]
[1754038687800,4.4664,3618.6,3617.6,2.76425349]
[1754038687801,7.56428157,3618.6,3618.2,2.76375261]
[1754038688123,2.3749,3618.5,3618.3,3.0]
[1754038688290,4.328,3618.4,3618.3,3.0]
[1754038688484,6.8413,3618.4,3618.3,3.0]
[1754038688686,6.8413,3618.4,3618.0,2.76394585]
[1754038688928,2.3749,3618.3,3618.1,3.0]
[1754038689111,4.328,3618.2,3618.1,3.0]
[1754038689317,6.8413,3618.2,3618.1,2.76388159]
[1754038689489,4.4664,3618.2,3618.1,5.76388159]
[1754038690125,4.4664,3618.2,3618.1,3.0]
[1754038690126,6.8413,3618.2,3618.1,3.0]
[1754038690426,6.8413,3618.2,3618.1,5.76388159]
[1754038692303,4.4664,3618.2,3618.1,5.76388159]
[1754038692505,6.8413,3618.2,3618.1,5.76388159]
[1754038693241,6.8413,3618.2,3618.1,3.0]
[1754038693402,6.8413,3618.2,3618.1,5.76388159]
[1754038696808,6.8413,3618.2,3618.0,2.76391651]
[1754038697005,2.364,3618.1,3618.0,5.76391651]
[1754038697209,2.5024,3618.1,3618.0,5.76391651]
[1754038697836,4.2424,3618.1,3618.0,5.76391651]
[1754038700744,1.8784,3618.1,3618.0,5.76391651]
[1754038703176,1.8784,3618.1,3618.0,3.0]
[1754038703177,4.2424,3618.1,3618.0,3.0]
[1754038704482,4.2424,3618.1,3617.7,5.76418317]
[1754038704780,0.1384,3617.8,3617.7,35.76418317]
[1754038704940,6.8274,3617.8,3617.7,35.76418317]
[1754038705342,4.4634,3617.8,3617.7,35.76418317]
[1754038705645,4.4634,3617.8,3617.7,38.48901593]
[1754038706284,0.1384,3617.8,3617.7,38.48901593]
[1754038706507,1.74,3618.1,3618.0,15.76395798]
[1754038706710,6.2024,3618.1,3618.0,5.76395798]
[1754038706841,6.2024,3618.1,3618.0,15.76395798]
[1754038707886,8.1335,3618.1,3618.0,5.76395798]
[1754038708086,8.1335,3618.1,3618.0,15.76395798]
[1754038708965,8.1335,3618.1,3618.0,5.76395798]
[1754038709300,8.1335,3618.1,3618.0,15.76395798]
[1754038709502,8.1335,3618.1,3618.0,5.76395798]
[1754038709666,8.5664,3618.1,3618.0,5.76395798]
[1754038709858,8.5664,3618.1,3618.0,15.76395798]
[1754038710062,6.2024,3618.1,3618.0,36.64971971]
[1754038710264,1.8784,3618.1,3618.0,36.64971971]
[1754038710460,6.2014,3618.1,3618.0,36.64971971]
[1754038710760,6.2014,3618.1,3618.0,41.11111971]
[1754038710761,1e-08,3618.1,3618.0,41.11111971]
[1754038711201,4.323,3618.8,3618.7,2.76342332]
[1754038711516,4.323,3619.1,3619.0,35.76319425]
[1754038712170,1.9311,3620.2,3620.1,32.76235463]
[1754038712373,6.8254,3620.2,3620.1,6.19735463]
[1754038712571,6.8254,3620.2,3620.1,3.435]
[1754038712777,6.8254,3620.2,3620.1,6.19735463]
[1754038713802,6.3925,3620.2,3620.1,6.19735463]
[1754038714268,6.8254,3620.2,3620.1,6.40925829]
[1754038714706,6.8254,3620.2,3620.1,3.64690366]
[1754038715012,6.8254,3620.2,3620.1,6.40925829]
[1754038715498,6.8254,3620.2,3620.1,3.64690366]
[1754038716275,7.3754,3620.2,3620.1,0.21190366]
[1754038716482,9.05315895,3620.2,3619.8,3.0]
[1754038716684,0.1384,3619.9,3619.8,2.76253136]
[1754038716882,4.4604,3619.9,3619.8,2.76253136]
[1754038717310,6.8244,3619.9,3619.8,2.97229835]
[1754038718673,6.8244,3619.9,3619.8,0.20976699]
[1754038718870,6.8244,3619.9,3618.7,0.41474233]
[1754038718871,6.8244,3619.9,3619.5,3.0]
[1754038719181,2.364,3619.8,3619.6,2.76271311]
[1754038719378,1.9311,3620.1,3619.8,3.0]
[1754038719580,6.684,3620.0,3619.9,15.76244077]
[1754038719768,6.684,3620.0,3619.9,5.76244077]
[1754038719970,4.32,3620.0,3619.9,5.76244077]
[1754038720581,4.4584,3620.0,3619.9,5.76244077]
[1754038722524,6.8224,3620.0,3619.9,5.76244077]
[1754038722730,6.8224,3620.0,3619.9,5.76250725]
[1754038722898,6.8224,3620.0,3619.9,3.0]
[1754038723617,7.3724,3620.0,3619.6,30.0]
[1754038723816,7.3724,3620.0,3618.8,4.319]
[1754038723817,0.4329,3619.9,3619.8,10.0]
[1754038724040,2.364,3619.9,3619.8,3.0]
[1754038724210,2.5024,3619.9,3619.8,3.0]
[1754038724721,0.55,3619.8,3619.5,0.20418394]
[1754038724919,0.1384,3619.6,3619.3,2.76291887]
[1754038725108,8.423,3619.5,3619.4,3.0]
[1754038725485,8.5614,3619.5,3619.4,3.0]
[1754038725735,6.1974,3619.5,3619.4,2.76288887]
[1754038725936,8.1285,3619.5,3619.4,2.76288887]
[1754038726389,6.1974,3619.5,3619.4,2.76288887]
[1754038726755,8.548,3619.5,3619.4,2.96942831]
[1754038727215,8.0928,3619.5,3619.4,2.96942831]
[1754038727904,6.1974,3619.5,3619.4,2.96942831]
[1754038728107,6.1974,3619.5,3619.4,3.5426744]
[1754038728508,6.1974,3619.5,3619.4,6.5426744]
[1754038728829,6.1974,3619.5,3619.4,3.20653944]
[1754038729037,6.1974,3619.5,3618.9,3.0]
[1754038729038,9.098,3619.5,3618.9,3.0]
[1754038729238,0.55,3619.2,3618.4,12.76363788]
[1754038729389,0.55,3619.0,3618.6,2.76344564]
[1754038729733,0.1384,3618.2,3618.1,32.76388159]
[1754038729906,4.4564,3618.2,3618.1,5.76388159]
[1754038730106,4.4564,3618.2,3618.1,35.76388159]
[1754038730512,4.4564,3618.2,3618.1,32.76388159]
[1754038730697,4.4564,3618.2,3618.1,35.76388159]
[1754038732197,4.4564,3618.2,3618.1,38.69929651]
[1754038735197,4.4564,3618.2,3618.1,20.77629651]
[1754038735396,6.807,3618.2,3618.1,10.73146375]
[1754038735802,6.807,3618.2,3618.1,5.97446375]
[1754038739349,6.807,3618.2,3618.1,3.21058216]
[1754038739644,6.807,3618.2,3618.1,5.97446375]
[1754038740906,4.4564,3618.2,3618.1,5.97446375]
[1754038741648,4.316,3618.2,3618.1,3.21058216]
[1754038741849,4.316,3618.2,3618.1,5.97441188]
[1754038742002,6.6666,3618.2,3618.1,5.97441188]
[1754038742209,6.2114,3618.2,3618.1,5.97441188]
[1754038742650,4.316,3618.2,3618.1,5.97441188]
[1754038742834,4.316,3618.2,3618.1,35.97441188]
[1754038743037,4.316,3618.2,3618.1,38.69924464]
[1754038744764,6.6666,3618.2,3618.1,8.23241188]
[1754038744961,6.6666,3618.2,3618.1,5.97441188]
[1754038747663,6.6666,3618.2,3618.1,3.21058216]
[1754038748144,6.6666,3618.2,3618.1,5.97446375]
[1754038748385,6.6666,3618.2,3618.1,3.21058216]
[1754038749558,6.6666,3618.2,3618.1,5.97446375]
[1754038749884,6.6666,3618.2,3618.1,3.21058216]
[1754038750058,7.3471,3618.2,3618.1,0.21058216]
[1754038750242,7.3471,3618.2,3617.9,2.76398803]
[1754038750428,2.3506,3618.1,3617.9,2.76398803]
[1754038750623,4.315,3618.0,3617.9,2.76398803]
[1754038750830,6.6656,3618.0,3617.9,5.76398803]
[1754038751371,0.1384,3618.0,3617.9,35.76398803]
[1754038751658,4.4524,3618.0,3617.9,38.48882079]
[1754038751823,4.4524,3618.0,3617.9,38.70023951]
[1754038753834,6.3478,3618.0,3617.9,38.70023951]
[1754038754054,6.3478,3618.0,3617.9,35.97540675]
[1754038754261,6.803,3618.0,3617.9,35.97540675]
[1754038754461,4.4524,3618.0,3617.9,35.97540675]
[1754038754825,6.803,3618.0,3617.9,30.94540675]
[1754038755553,6.3478,3618.0,3617.9,30.94540675]
[1754038756083,4.4524,3618.0,3617.9,30.94540675]
[1754038756431,4.4524,3618.0,3617.9,33.67023951]
[1754038756764,6.3623,3618.0,3617.9,33.67023951]
[1754038757459,4.4524,3618.0,3617.9,33.67023951]
[1754038758741,0.1384,3618.0,3617.9,33.67023951]
[1754038758936,4.4514,3618.0,3617.9,33.67023951]
[1754038759691,6.3613,3618.0,3617.9,33.67023951]
[1754038760864,6.3613,3618.0,3617.9,30.94540675]
[1754038761259,4.4514,3618.0,3617.9,30.94540675]
[1754038762191,6.3613,3618.0,3617.9,30.94540675]
[1754038762850,6.805,3618.0,3617.9,30.94540675]
[1754038763086,6.805,3618.0,3617.9,5.97540675]
[1754038763283,6.805,3618.0,3617.9,0.21141872]
[1754038763558,6.805,3618.0,3617.9,3.0]
[1754038763762,6.805,3618.0,3617.9,2.76403438]
[1754038764488,6.805,3618.0,3617.9,5.76403438]
[1754038765901,8.545,3618.0,3617.9,5.76403438]
[1754038766263,8.545,3618.0,3617.9,5.96785519]
[1754038768167,8.545,3618.0,3617.9,3.20382081]
[1754038768901,3.31410131,3617.9,3616.8,2.76486919]
[1754038769097,0.55,3617.5,3616.9,2.76479858]
[1754038769269,6.6646,3617.4,3616.9,2.76479858]
[1754038769465,2.3536,3617.3,3617.1,3.0]
[1754038769665,4.31,3617.2,3617.1,3.0]
[1754038769864,6.6636,3617.2,3616.8,30.0]
[1754038770181,4.31,3617.2,3617.1,3.0]
[1754038770380,4.31,3617.2,3617.1,2.76464571]
[1754038770789,6.6636,3617.2,3617.1,5.76464571]
[1754038771889,1.9099,3617.4,3617.3,2.76449285]
[1754038772196,0.4437,3617.5,3617.4,2.76441643]
[1754038772497,6.2199,3617.5,3617.4,2.76441643]
[1754038772704,6.6636,3617.5,3617.4,2.76441643]
[1754038773206,6.6636,3617.5,3617.0,13.0]
[1754038773520,2.3536,3617.4,3617.0,2.76470431]
[1754038773671,4.31,3617.3,3617.0,2.76470431]
[1754038773873,2.3536,3617.2,3616.7,0.20678918]
[1754038774074,2.3536,3617.2,3615.9,2.76552515]
[1754038774075,4.31,3617.1,3615.9,2.76552515]
[1754038774380,2.3536,3617.0,3616.6,2.76501794]
[1754038774618,5.25282135,3616.9,3616.6,2.76501794]
[1754038774792,2.3536,3616.8,3616.7,2.76494487]
[1754038774984,2.3536,3616.8,3616.7,2.96895885]
[1754038776975,0.55,3617.3,3616.7,0.20401398]
[1754038777176,6.6636,3617.2,3616.6,2.76501313]
[1754038777412,6.6636,3617.1,3616.7,2.76495107]
[1754038777611,5.25281453,3617.1,3616.7,2.76495107]
[1754038777773,2.3536,3617.0,3616.9,2.76479858]
[1754038778506,2.3536,3617.0,3616.5,3.0]
[1754038778714,6.6626,3616.9,3616.8,2.764846]
[1754038779079,6.801,3616.9,3616.8,2.764846]
[1754038779786,6.801,3616.9,3616.6,2.76496816]
[1754038779787,6.801,3616.9,3616.2,3.21192704]
[1754038780025,0.1384,3616.7,3616.5,5.76505015]
[1754038780222,4.4474,3616.6,3616.5,3.0]
[1754038780433,4.4474,3616.6,3616.5,2.76502923]
[1754038780609,6.801,3616.6,3616.2,2.76532504]
[1754038780792,2.3536,3616.5,3616.2,3.20343501]
[1754038780984,2.3536,3616.5,3616.2,5.96876679]
[1754038780985,4.7527,3616.4,3616.2,5.96876679]
[1754038781179,2.3536,3616.3,3616.2,3.20343501]
[1754038781380,2.3536,3616.3,3616.2,0.20343501]
[1754038781610,2.492,3616.3,3614.9,2.7663169]
[1754038781794,0.1384,3615.6,3615.1,10.49811079]
[1754038781994,0.1384,3615.6,3615.5,32.76586917]
[1754038782299,0.1384,3615.6,3615.5,35.76586917]
[1754038782300,4.4474,3615.6,3615.5,35.76586917]